[Event "Qatar Masters-B 2024"]
[Site "Doha"]
[Date "2024.12.10"]
[Round "7.1"]
[White "Shermuhammadov, Samandar"]
[Black "Alhassadi, Yousef A."]
[Result "0-1"]
[ECO "C00"]
[WhiteElo "2108"]
[BlackElo "2126"]
[Annotator "NA RC"]
[PlyCount "108"]
[EventDate "2024.11.24"]
[EventType "swiss"]
[EventCountry "QAT"]
[SourceTitle "playchess.com"]
[Source "ChessBase"]
[SourceQuality "1"]
[TimeControl "40/5400+30:1800+30"]

1. e4 {[%emt 0:00:02]} c5 {[%emt 0:00:05]} 2. Nf3 {[%emt 0:00:05]} e6 {[%emt 0:00:05]} 3. d3 {[%emt 0:00:11]} d5 {[%emt 0:00:29]} 4. Nbd2 {[%emt 0:00:03]} Nc6 {[%emt 0:00:16]} 5. g3 {[%emt 0:00:14]} Nf6 {[%emt 0:00:08]} 6. Bg2 {[%emt 0:00:03]} Be7 {[%emt 0:00:08]} 7. O-O {[%emt 0:00:12]} O-O {[%emt 0:00:23]} 8. a4 {[%emt 0:00:13]} Qc7 {[%emt 0:20:30]} 9. Re1 {[%emt 0:00:24]} b6 {[%emt 0:05:08]} 10. e5 {[%emt 0:01:16]} Nd7 {[%emt 0:00:07]} 11. Qe2 {[%emt 0:00:06]} a5 {[%emt 0:08:40]} 12. Nb1 {[%emt 0:00:39]} Ba6 {[%emt 0:03:14]} 13. Bf4 {[%emt 0:00:11]} c4 {[%emt 0:15:48]} 14. dxc4 {[%emt 0:00:15]} Bxc4 {[%emt 0:00:55]} 15. Qd1 {[%emt 0:00:06]} Ba6 {[%emt 0:03:52]} 16. Nc3 {[%emt 0:00:37]} Nc5 {[%emt 0:04:26]} 17. Nb5 {[%emt 0:00:42]} Qd7 {[%emt 0:04:41]} 18. Bf1 {[%emt 0:03:35]} Na7 {[%emt 0:08:02]} 19. Nc3 {[%emt 0:06:41]} Bxf1 {[%emt 0:00:38]} 20. Rxf1 {[%emt 0:00:03]} b5 {[%emt 0:01:04]} 21. axb5 {[%emt 0:06:39]} Nxb5 {[%emt 0:00:07]} 22. Nxb5 {[%emt 0:04:34]} Qxb5 {[%emt 0:00:08]} 23. b3 {[%emt 0:00:01]} Rfc8 {[%emt 0:03:00]} 24. Nd4 {[%emt 0:00:20]} Qb4 {[%emt 0:00:55]} 25. Ne2 {[%emt 0:01:11]} a4 {[%emt 0:03:44]} 26. bxa4 {[%emt 0:00:43]} Nxa4 {[%emt 0:00:07]} 27. Qd3 {[%emt 0:04:37]} Rab8 {[%emt 0:07:52]} 28. Rfb1 {[%emt 0:02:59]} Qxb1+ {[%emt 0:02:19]} 29. Rxb1 Rxb1+ {[%emt 0:00:08]} 30. Kg2 {[%emt 0:00:17]} Nc5 {[%emt 0:00:17]} 31. Qa3 {[%emt 0:01:19]} Bf8 {[%emt 0:00:20]} 32. Nd4 {[%emt 0:02:29]} Rbb8 {[%emt 0:01:45]} 33. Qf3 {[%emt 0:02:39]} Rb4 {[%emt 0:01:27]} 34. c3 {[%emt 0:02:35]} Rb2 {[%emt 0:00:35]} 35. Bc1 {[%emt 0:05:14]} Ra2 {[%emt 0:01:08]} 36. Ne2 {[%emt 0:03:07]} Ne4 {[%emt 0:00:37]} 37. Qd3 {[%emt 0:00:24]} Bc5 {[%emt 0:01:46]} 38. f4 {[%emt 0:04:33]} Nxc3 {[%emt 0:02:13]} 39. Qxc3 {[%emt 0:00:10]} Rxe2+ {[%emt 0:00:07]} 40. Kf3 {[%emt 0:00:08]} Re4 {[%emt 0:00:07]} 41. Qd3 {[%emt 0:32:07]} Bb4 {[%emt 0:32:07]} 42. Bb2 {[%emt 0:01:54]} Rec4 {[%emt 0:00:06]} 43. Kg4 {[%emt 0:00:12]} g6 {[%emt 0:00:34]} 44. Bd4 {[%emt 0:00:33]} Bc3 {[%emt 0:01:01]} 45. Bxc3 {[%emt 0:00:26]} Rxc3 {[%emt 0:00:06]} 46. Qd4 {[%emt 0:01:33]} Kg7 {[%emt 0:00:35]} 47. Qb4 {[%emt 0:00:22]} Rc2 {[%emt 0:00:51]} 48. h3 {[%emt 0:01:42]} R2c7 {[%emt 0:01:12]} 49. Qd6 {[%emt 0:00:23]} h6 {[%emt 0:00:07]} 50. Kh4 {[%emt 0:00:29]} Rc4 {[%emt 0:00:23]} 51. Kg4 {[%emt 0:00:26]} Rc3 {[%emt 0:00:51]} 52. Qd7 {[%emt 0:00:50]} Rb8 {[%emt 0:00:13]} 53. Kh4 {[%emt 0:02:43]} Rbb3 {[%emt 0:00:10]} 54. f5 {[%emt 0:00:55]} Rb4+ {[%emt 0:00:06]} 0-1

[Event "Qatar Masters-B 2024"]
[Site "Doha"]
[Date "2024.12.10"]
[Round "7.2"]
[White "Hong, Mingren"]
[Black "Mahmood Lodhi"]
[Result "1-0"]
[ECO "C97"]
[WhiteElo "1951"]
[BlackElo "2150"]
[Annotator "RC"]
[PlyCount "195"]
[EventDate "2024.11.24"]
[EventType "swiss"]
[EventCountry "QAT"]
[SourceTitle "playchess.com"]
[Source "ChessBase"]
[SourceQuality "1"]
[TimeControl "40/5400+30:1800+30"]

1. e4 {[%emt 0:00:05]} e5 {[%emt 0:00:05]} 2. Nf3 {[%emt 0:00:04]} Nc6 {[%emt 0:00:01]} 3. Bb5 {[%emt 0:00:12]} a6 {[%emt 0:00:11]} 4. Ba4 {[%emt 0:00:04]} Nf6 {[%emt 0:00:14]} 5. O-O {[%emt 0:00:09]} Be7 {[%emt 0:00:51]} 6. Re1 {[%emt 0:00:07]} b5 {[%emt 0:00:08]} 7. Bb3 {[%emt 0:00:04]} d6 {[%emt 0:00:17]} 8. c3 {[%emt 0:00:20]} O-O {[%emt 0:00:08]} 9. h3 {[%emt 0:00:09]} Na5 {[%emt 0:00:08]} 10. Bc2 {[%emt 0:00:06]} c5 {[%emt 0:00:25]} 11. d4 {[%emt 0:00:05]} Qc7 {[%emt 0:00:26]} 12. d5 {[%emt 0:00:15]} Ne8 {[%emt 0:01:11]} 13. Nbd2 {[%emt 0:02:55]} g6 {[%emt 0:00:50]} 14. b4 {[%emt 0:02:25]} Nb7 {[%emt 0:03:24]} 15. a4 {[%emt 0:00:45]} Rb8 {[%emt 0:01:32]} 16. axb5 {[%emt 0:02:08]} axb5 {[%emt 0:00:17]} 17. Nb3 {[%emt 0:00:15]} c4 {[%emt 0:00:49]} 18. Na5 {[%emt 0:00:18]} Nd8 {[%emt 0:04:00]} 19. Bh6 {[%emt 0:02:45]} Ng7 {[%emt 0:00:14]} 20. Qd2 {[%emt 0:01:06]} Bd7 {[%emt 0:06:03]} 21. Kh1 {[%emt 0:01:55]} f6 {[%emt 0:00:48]} 22. Nh2 {[%emt 0:02:25]} Nf7 {[%emt 0:02:07]} 23. Be3 {[%emt 0:00:27]} h5 {[%emt 0:08:31]} 24. f4 {[%emt 0:05:59]} exf4 {[%emt 0:07:58]} 25. Bxf4 {[%emt 0:00:04]} g5 {[%emt 0:00:26]} 26. Be3 {[%emt 0:00:04]} Ne5 {[%emt 0:00:09]} 27. Rf1 {[%emt 0:00:18]} g4 {[%emt 0:05:11]} 28. Bf4 {[%emt 0:05:53]} Ra8 {[%emt 0:22:46]} 29. Qe2 {[%emt 0:05:14]} Kf7 {[%emt 0:09:08]} 30. h4 {[%emt 0:10:11]} Kg8 {[%emt 0:04:33]} 31. g3 {[%emt 0:00:45]} Rf7 {[%emt 0:04:35]} 32. Rf2 {[%emt 0:02:30]} Raf8 {[%emt 0:00:22]} 33. Raf1 {[%emt 0:00:47]} Bd8 {[%emt 0:01:14]} 34. Be3 {[%emt 0:02:47]} Qc8 {[%emt 0:02:17]} 35. Bd4 {[%emt 0:00:51]} Qa8 {[%emt 0:00:37]} 36. Kg1 {[%emt 0:00:22]} Bxa5 {[%emt 0:00:51]} 37. Ra1 {[%emt 0:00:13]} Bc7 {[%emt 0:00:18]} 38. Rxa8 {[%emt 0:00:31]} Rxa8 {[%emt 0:00:01]} 39. Qe3 {[%emt 0:03:39]} Ra6 {[%emt 0:03:04]} 40. Kg2 {[%emt 0:02:10]} Kh7 {[%emt 0:01:15]} 41. Qf4 {[%emt 0:34:24]} Bd8 {[%emt 0:31:58]} 42. Be3 {[%emt 0:03:20]} Kg8 {[%emt 0:01:08]} 43. Qh6 {[%emt 0:01:43]} Be8 {[%emt 0:00:57]} 44. Bd4 {[%emt 0:01:09]} Ra2 {[%emt 0:00:51]} 45. Qe3 {[%emt 0:00:16]} Rb7 {[%emt 0:00:41]} 46. Bd1 {[%emt 0:00:40]} Ra1 {[%emt 0:00:23]} 47. Be2 {[%emt 0:00:55]} Bg6 {[%emt 0:00:23]} 48. Nf1 {[%emt 0:01:26]} Ra6 {[%emt 0:01:06]} 49. Nd2 {[%emt 0:00:14]} Kh7 {[%emt 0:00:48]} 50. Bd1 {[%emt 0:02:19]} Ra1 {[%emt 0:00:52]} 51. Bc2 {[%emt 0:00:22]} Rb8 {[%emt 0:00:44]} 52. Qf4 {[%emt 0:00:37]} Rba8 {[%emt 0:00:26]} 53. Bb1 {[%emt 0:01:07]} Kg8 {[%emt 0:00:34]} 54. Qh6 {[%emt 0:01:23]} Kf7 {[%emt 0:00:24]} 55. Qe3 {[%emt 0:00:34]} R8a6 {[%emt 0:00:23]} 56. Rf1 {[%emt 0:00:17]} Kg8 {[%emt 0:01:24]} 57. Qh6 {[%emt 0:02:04]} Kf7 {[%emt 0:00:10]} 58. Qe3 {[%emt 0:00:11]} Ra8 {[%emt 0:00:41]} 59. Bb6 {[%emt 0:00:48]} Be7 {[%emt 0:00:44]} 60. Ba5 {[%emt 0:00:26]} Ra6 {[%emt 0:00:23]} 61. Kf2 {[%emt 0:01:23]} Ne8 {[%emt 0:00:58]} 62. Ke2 {[%emt 0:00:23]} Kg7 {[%emt 0:01:20]} 63. Qd4 {[%emt 0:00:29]} Bf8 {[%emt 0:00:48]} 64. Rc1 {[%emt 0:01:50]} Kh7 {[%emt 0:00:41]} 65. Kd1 {[%emt 0:01:16]} Bh6 {[%emt 0:00:39]} 66. Kc2 {[%emt 0:00:04]} Bxd2 {[%emt 0:01:24]} 67. Qxd2 {[%emt 0:00:04]} Bxe4+ {[%emt 0:00:14]} 68. Kb2 {[%emt 0:00:03]} Rxb1+ {[%emt 0:00:18]} 69. Rxb1 {[%emt 0:00:02]} Bxb1 {[%emt 0:00:26]} 70. Kxb1 {[%emt 0:00:02]} Kg6 {[%emt 0:00:14]} 71. Qf4 {[%emt 0:00:30]} Ng7 {[%emt 0:00:24]} 72. Bd8 {[%emt 0:01:14]} Ne8 {[%emt 0:00:28]} 73. Qe4+ {[%emt 0:00:23]} f5 {[%emt 0:00:17]} 74. Qf4 {[%emt 0:00:05]} Nf7 {[%emt 0:00:09]} 75. Qe3 {[%emt 0:00:34]} Ng7 {[%emt 0:00:38]} 76. Qe7 {[%emt 0:00:42]} Nxd8 {[%emt 0:00:50]} 77. Qxd8 {[%emt 0:00:02]} Kh7 {[%emt 0:00:43]} 78. Kc2 {[%emt 0:00:22]} Ra2+ {[%emt 0:00:42]} 79. Kb1 {[%emt 0:00:15]} Rf2 {[%emt 0:00:23]} 80. Qxd6 {[%emt 0:02:46]} f4 {[%emt 0:00:06]} 81. Qe5 {[%emt 0:00:30]} f3 {[%emt 0:00:31]} 82. Qe4+ {[%emt 0:00:30]} Kg8 {[%emt 0:00:45]} 83. d6 {[%emt 0:00:29]} Rd2 {[%emt 0:00:25]} 84. Qa8+ {[%emt 0:00:26]} Kf7 {[%emt 0:00:57]} 85. Qb7+ {[%emt 0:00:03]} Kg8 {[%emt 0:01:04]} 86. Qa8+ {[%emt 0:00:20]} Kf7 {[%emt 0:00:12]} 87. Qb7+ {[%emt 0:00:40]} Kg6 {[%emt 0:00:17]} 88. Qe4+ {[%emt 0:00:20]} Nf5 {[%emt 0:03:17]} 89. Qe6+ {[%emt 0:00:03]} Kg7 {[%emt 0:00:24]} 90. Qxf5 {[%emt 0:00:02]} Rxd6 {[%emt 0:00:20]} 91. Qg5+ {[%emt 0:02:25]} Kf7 {[%emt 0:00:52]} 92. Qxh5+ {[%emt 0:00:39]} Ke7 {[%emt 0:02:14]} 93. Qxg4 {[%emt 0:00:38]} Rf6 {[%emt 0:00:11]} 94. Kc2 {[%emt 0:01:23]} f2 {[%emt 0:00:11]} 95. Qe2+ {[%emt 0:00:01]} Kf7 {[%emt 0:00:31]} 96. Qf1 {[%emt 0:00:04]} Kg6 {[%emt 0:00:09]} 97. Kd2 {[%emt 0:00:03]} Kh5 {[%emt 0:00:49]} 98. Ke2 {[%emt 0:00:04]} 1-0

[Event "Qatar Masters-B 2024"]
[Site "Doha"]
[Date "2024.12.10"]
[Round "7.3"]
[White "Khalil, Manar"]
[Black "Syed Abdul Khader"]
[Result "0-1"]
[ECO "C49"]
[WhiteElo "1900"]
[BlackElo "1943"]
[Annotator "NA RC"]
[PlyCount "110"]
[EventDate "2024.11.24"]
[EventType "swiss"]
[EventCountry "QAT"]
[SourceTitle "playchess.com"]
[Source "ChessBase"]
[SourceQuality "1"]
[TimeControl "40/5400+30:1800+30"]

1. e4 {[%emt 0:00:04]} e5 {[%emt 0:00:11]} 2. Nf3 {[%emt 0:00:16]} Nc6 {[%emt 0:00:10]} 3. Nc3 {[%emt 0:00:33]} Nf6 {[%emt 0:00:26]} 4. Bb5 {[%emt 0:00:28]} Bb4 {[%emt 0:01:43]} 5. O-O {[%emt 0:01:20]} O-O {[%emt 0:00:27]} 6. d3 {[%emt 0:01:39]} d6 {[%emt 0:00:29]} 7. h3 {[%emt 0:01:33]} Bxc3 {[%emt 0:05:46]} 8. bxc3 {[%emt 0:00:14]} Ne7 {[%emt 0:00:05]} 9. Re1 {[%emt 0:03:14]} c6 {[%emt 0:01:54]} 10. Ba4 {[%emt 0:00:24]} a5 {[%emt 0:16:53]} 11. c4 {[%emt 0:04:14]} Bd7 {[%emt 0:02:19]} 12. Rb1 {[%emt 0:08:04]} Rb8 {[%emt 0:01:46]} 13. c3 {[%emt 0:01:12]} b5 {[%emt 0:00:42]} 14. cxb5 {[%emt 0:01:09]} cxb5 {[%emt 0:00:09]} 15. Bc2 {[%emt 0:00:28]} Ng6 {[%emt 0:00:20]} 16. d4 {[%emt 0:05:36]} Be6 {[%emt 0:04:23]} 17. Bd3 {[%emt 0:05:26]} Qc7 {[%emt 0:06:57]} 18. Bd2 {[%emt 0:03:26]} Bc4 {[%emt 0:01:37]} 19. Qe2 {[%emt 0:06:51]} Bxd3 {[%emt 0:08:38]} 20. Qxd3 {[%emt 0:00:08]} Qc4 {[%emt 0:05:59]} 21. Qe2 {[%emt 0:17:34]} Rfe8 {[%emt 0:04:49]} 22. d5 {[%emt 0:04:13]} Rec8 {[%emt 0:03:38]} 23. g3 {[%emt 0:03:01]} Qa4 {[%emt 0:02:19]} 24. Qe3 {[%emt 0:08:39]} Rc4 {[%emt 0:03:07]} 25. Qa7 {[%emt 0:00:34]} Rf8 {[%emt 0:00:07]} 26. Qa6 {[%emt 0:01:11]} Nxe4 {[%emt 0:02:18]} 27. Rxb5 {[%emt 0:01:29]} Qc2 {[%emt 0:01:52]} 28. Be3 {[%emt 0:04:41]} Rxc3 {[%emt 0:00:16]} 29. Qb6 {[%emt 0:01:52]} f5 {[%emt 0:01:42]} 30. Rb2 {[%emt 0:04:34]} Qd3 {[%emt 0:00:55]} 31. Ng5 {[%emt 0:00:38]} Nxg5 {[%emt 0:02:06]} 32. Bxg5 {[%emt 0:00:14]} Qxd5 {[%emt 0:01:19]} 33. Rd2 {[%emt 0:01:43]} Qf7 {[%emt 0:05:49]} 34. Qxa5 {[%emt 0:03:28]} Rc6 {[%emt 0:00:38]} 35. Qb5 {[%emt 0:02:50]} Rfc8 {[%emt 0:00:23]} 36. Red1 {[%emt 0:03:15]} h6 {[%emt 0:00:53]} 37. Bd8 {[%emt 0:00:21]} Rc5 {[%emt 0:02:24]} 38. Qb6 {[%emt 0:00:19]} d5 {[%emt 0:00:27]} 39. Qb4 {[%emt 0:01:39]} Rc4 {[%emt 0:03:13]} 40. Qa5 {[%emt 0:00:25]} d4 {[%emt 0:00:14]} 41. a4 {[%emt 0:30:26]} Qd7 {[%emt 0:30:23]} 42. Qa6 {[%emt 0:01:01]} R4c6 {[%emt 0:00:14]} 43. Bb6 {[%emt 0:00:13]} f4 {[%emt 0:00:17]} 44. Kh2 {[%emt 0:00:19]} fxg3+ {[%emt 0:01:02]} 45. fxg3 {[%emt 0:00:05]} e4 {[%emt 0:00:50]} 46. Qb5 {[%emt 0:01:14]} e3 {[%emt 0:00:53]} 47. Re2 {[%emt 0:00:25]} Qf7 {[%emt 0:02:47]} 48. Bxd4 {[%emt 0:00:31]} Rd6 {[%emt 0:01:49]} 49. Qb2 {[%emt 0:01:02]} Ne5 {[%emt 0:01:20]} 50. Qb4 {[%emt 0:00:41]} Nf3+ {[%emt 0:00:57]} 51. Kg2 {[%emt 0:00:13]} Qd5 {[%emt 0:00:16]} 52. Qb5 {[%emt 0:00:50]} Nxd4+ {[%emt 0:00:48]} 53. Qxd5+ {[%emt 0:00:14]} Rxd5 {[%emt 0:00:01]} 54. Rxe3 {[%emt 0:00:11]} Rc2+ {[%emt 0:00:11]} 55. Kf1 {[%emt 0:00:57]} Rf5+ {[%emt 0:00:34]} 0-1

[Event "Qatar Masters-B 2024"]
[Site "Doha"]
[Date "2024.12.10"]
[Round "7.4"]
[White "Aryan Mehta"]
[Black "Akhmediyar, Yernur"]
[Result "1/2-1/2"]
[ECO "E12"]
[WhiteElo "1762"]
[BlackElo "1898"]
[Annotator "NA RC"]
[PlyCount "77"]
[EventDate "2024.11.24"]
[EventType "swiss"]
[EventCountry "QAT"]
[SourceTitle "playchess.com"]
[Source "ChessBase"]
[SourceQuality "1"]
[TimeControl "40/5400+30:1800+30"]

1. d4 {[%emt 0:00:08]} Nf6 {[%emt 0:00:31]} 2. c4 {[%emt 0:00:09]} e6 {[%emt 0:01:21]} 3. Nc3 {[%emt 0:00:06]} Bb4 {[%emt 0:01:05]} 4. Nf3 {[%emt 0:00:31]} b6 {[%emt 0:01:15]} 5. Bg5 {[%emt 0:00:17]} Bb7 {[%emt 0:02:59]} 6. e3 {[%emt 0:00:14]} Qe7 {[%emt 0:01:20]} 7. Bd3 {[%emt 0:01:37]} Bxc3+ {[%emt 0:07:08]} 8. bxc3 {[%emt 0:00:13]} d6 {[%emt 0:00:54]} 9. Bxf6 {[%emt 0:10:58]} Qxf6 {[%emt 0:03:17]} 10. Qc2 {[%emt 0:01:03]} Nd7 {[%emt 0:12:51]} 11. Be4 {[%emt 0:03:38]} Bxe4 {[%emt 0:02:00]} 12. Qxe4 {[%emt 0:00:07]} O-O {[%emt 0:00:47]} 13. O-O {[%emt 0:00:36]} Qe7 {[%emt 0:03:46]} 14. Qd3 {[%emt 0:05:27]} e5 {[%emt 0:05:48]} 15. Nd2 {[%emt 0:03:53]} Rae8 {[%emt 0:04:16]} 16. e4 {[%emt 0:03:54]} Qg5 {[%emt 0:09:20]} 17. g3 {[%emt 0:10:46]} Qg6 {[%emt 0:07:56]} 18. f4 {[%emt 0:05:25]} exf4 {[%emt 0:05:19]} 19. Rxf4 {[%emt 0:01:22]} Re6 {[%emt 0:03:21]} 20. Raf1 {[%emt 0:08:03]} Rfe8 {[%emt 0:02:59]} 21. R1f2 {[%emt 0:13:07]} Rf6 {[%emt 0:05:18]} 22. Kf1 {[%emt 0:04:35]} Qh5 {[%emt 0:05:20]} 23. Qf3 {[%emt 0:01:37]} Qxf3 {[%emt 0:04:04]} 24. R2xf3 {[%emt 0:00:14]} a5 {[%emt 0:01:31]} 25. a4 {[%emt 0:00:40]} Ree6 {[%emt 0:02:02]} 26. Ke2 {[%emt 0:02:23]} Kf8 {[%emt 0:01:48]} 27. Kd3 {[%emt 0:00:25]} Ke7 {[%emt 0:01:18]} 28. Nf1 {[%emt 0:01:00]} Rxf4 {[%emt 0:01:27]} 29. gxf4 {[%emt 0:01:28]} Rg6 {[%emt 0:02:06]} 30. Rg3 {[%emt 0:01:41]} Nf6 {[%emt 0:01:24]} 31. Rxg6 {[%emt 0:05:25]} hxg6 {[%emt 0:00:20]} 32. h3 {[%emt 0:01:03]} Nh5 {[%emt 0:00:53]} 33. Ke3 {[%emt 0:00:14]} Kf6 {[%emt 0:00:40]} 34. h4 {[%emt 0:00:59]} Ke6 {[%emt 0:00:29]} 35. Kf3 {[%emt 0:01:07]} Nf6 {[%emt 0:00:29]} 36. Ne3 {[%emt 0:01:18]} c6 {[%emt 0:00:29]} 37. Nf1 {[%emt 0:07:02]} Ne8 {[%emt 0:00:34]} 38. Nd2 {[%emt 0:00:15]} Nc7 {[%emt 0:00:28]} 39. Nb3 {[%emt 0:01:01]} 1/2-1/2

[Event "Qatar Masters-B 2024"]
[Site "Doha"]
[Date "2024.12.10"]
[Round "7.5"]
[White "Wazwaz, Amjad"]
[Black "Zozek Salah Mohammed"]
[Result "0-1"]
[ECO "B23"]
[WhiteElo "1956"]
[BlackElo "2206"]
[Annotator "RC"]
[PlyCount "78"]
[EventDate "2024.11.24"]
[EventType "swiss"]
[EventCountry "QAT"]
[SourceTitle "playchess.com"]
[Source "ChessBase"]
[SourceQuality "1"]
[TimeControl "40/5400+30:1800+30"]

1. e4 {[%emt 0:00:03]} c5 {[%emt 0:00:18]} 2. Nc3 {[%emt 0:00:22]} d6 {[%emt 0:00:24]} 3. f4 {[%emt 0:00:14]} Nc6 {[%emt 0:00:35]} 4. Bb5 {[%emt 0:00:13]} Bd7 {[%emt 0:00:12]} 5. Nf3 {[%emt 0:00:23]} a6 {[%emt 0:00:13]} 6. Bxc6 {[%emt 0:00:11]} Bxc6 {[%emt 0:00:01]} 7. d3 {[%emt 0:00:15]} b5 {[%emt 0:01:00]} 8. O-O {[%emt 0:00:18]} g6 {[%emt 0:01:03]} 9. e5 {[%emt 0:01:26]} Bg7 {[%emt 0:04:45]} 10. Ne4 {[%emt 0:10:02]} Nh6 {[%emt 0:02:45]} 11. Qe1 {[%emt 0:03:13]} O-O {[%emt 0:00:48]} 12. h3 {[%emt 0:01:49]} Nf5 {[%emt 0:04:39]} 13. g4 {[%emt 0:00:30]} Bxe4 {[%emt 0:01:11]} 14. dxe4 {[%emt 0:00:19]} Nd4 {[%emt 0:00:01]} 15. Nxd4 {[%emt 0:01:36]} cxd4 {[%emt 0:00:01]} 16. exd6 {[%emt 0:00:41]} Qxd6 {[%emt 0:00:15]} 17. Bd2 {[%emt 0:07:06]} Rac8 {[%emt 0:02:42]} 18. Rf2 {[%emt 0:01:01]} Rxc2 {[%emt 0:01:45]} 19. Bb4 {[%emt 0:01:05]} Qc7 {[%emt 0:06:38]} 20. e5 {[%emt 0:00:32]} Rxf2 {[%emt 0:04:24]} 21. Qxf2 {[%emt 0:01:09]} Rd8 {[%emt 0:01:41]} 22. Qd2 {[%emt 0:00:43]} Qb7 {[%emt 0:00:45]} 23. Qd3 {[%emt 0:01:30]} Bf8 {[%emt 0:00:48]} 24. Rf1 {[%emt 0:04:35]} Qd5 {[%emt 0:00:57]} 25. b3 {[%emt 0:01:21]} e6 {[%emt 0:03:12]} 26. Bxf8 {[%emt 0:03:07]} Rxf8 {[%emt 0:00:02]} 27. Rc1 {[%emt 0:00:34]} a5 {[%emt 0:01:08]} 28. a3 {[%emt 0:00:20]} Rd8 {[%emt 0:02:21]} 29. Kh2 {[%emt 0:01:24]} a4 {[%emt 0:00:23]} 30. bxa4 {[%emt 0:00:35]} bxa4 {[%emt 0:00:01]} 31. Kg3 {[%emt 0:04:58]} Rb8 {[%emt 0:00:33]} 32. Qd2 {[%emt 0:13:05]} Rb3+ {[%emt 0:00:25]} 33. Kh4 {[%emt 0:00:32]} Qf3 {[%emt 0:02:12]} 34. Qh2 {[%emt 0:12:10]} Rxa3 {[%emt 0:02:10]} 35. Kg5 {[%emt 0:00:47]} Kg7 {[%emt 0:00:10]} 36. Rc7 {[%emt 0:04:34]} Qd5 {[%emt 0:05:22]} 37. f5 {[%emt 0:00:49]} exf5 {[%emt 0:00:18]} 38. gxf5 {[%emt 0:00:56]} h6+ {[%emt 0:00:06]} 39. Kg4 {[%emt 0:00:35]} Qe4+ {[%emt 0:00:02]} 0-1

[Event "Qatar Masters-B 2024"]
[Site "Doha"]
[Date "2024.12.10"]
[Round "7.6"]
[White "Mendoza, Ryan"]
[Black "Boulrens, Ala Eddine"]
[Result "0-1"]
[ECO "D75"]
[WhiteElo "1941"]
[BlackElo "2144"]
[Annotator "NA RC"]
[PlyCount "160"]
[EventDate "2024.11.24"]
[EventType "swiss"]
[EventCountry "QAT"]
[SourceTitle "playchess.com"]
[Source "ChessBase"]
[SourceQuality "1"]
[TimeControl "40/5400+30:1800+30"]

1. Nf3 {[%emt 0:00:15]} g6 {[%emt 0:00:10]} 2. g3 {[%emt 0:00:19]} Bg7 {[%emt 0:00:07]} 3. c4 {[%emt 0:00:37]} e5 {[%emt 0:00:18]} 4. Nc3 {[%emt 0:00:17]} c6 {[%emt 0:00:22]} 5. Bg2 {[%emt 0:01:29]} Ne7 {[%emt 0:00:20]} 6. d4 {[%emt 0:00:52]} exd4 {[%emt 0:00:07]} 7. Nxd4 {[%emt 0:00:05]} O-O {[%emt 0:00:10]} 8. O-O {[%emt 0:00:20]} d5 {[%emt 0:00:18]} 9. cxd5 {[%emt 0:02:26]} Nxd5 {[%emt 0:00:20]} 10. Nxd5 {[%emt 0:00:19]} cxd5 {[%emt 0:00:04]} 11. Be3 {[%emt 0:00:19]} Nc6 {[%emt 0:00:59]} 12. Nxc6 {[%emt 0:02:09]} bxc6 {[%emt 0:00:05]} 13. Bd4 {[%emt 0:00:04]} Re8 {[%emt 0:02:16]} 14. Bxg7 {[%emt 0:00:31]} Kxg7 {[%emt 0:00:04]} 15. e3 {[%emt 0:01:14]} Qb6 {[%emt 0:03:08]} 16. b3 {[%emt 0:03:52]} Be6 {[%emt 0:02:39]} 17. Qd2 {[%emt 0:01:27]} Rac8 {[%emt 0:07:05]} 18. Rfc1 {[%emt 0:00:44]} Red8 {[%emt 0:05:13]} 19. Qd4+ {[%emt 0:03:12]} Qxd4 {[%emt 0:00:59]} 20. exd4 {[%emt 0:00:05]} Kf8 {[%emt 0:00:24]} 21. Rc5 {[%emt 0:00:37]} Ke7 {[%emt 0:00:41]} 22. Rac1 {[%emt 0:00:28]} Kd6 {[%emt 0:00:13]} 23. b4 {[%emt 0:05:54]} Bd7 {[%emt 0:03:40]} 24. a3 {[%emt 0:05:50]} Re8 {[%emt 0:00:56]} 25. Kf1 {[%emt 0:04:06]} Rb8 {[%emt 0:02:34]} 26. Ra5 {[%emt 0:01:58]} Rb7 {[%emt 0:02:58]} 27. Rc3 {[%emt 0:00:44]} Bc8 {[%emt 0:03:07]} 28. Rac5 {[%emt 0:16:25]} Bd7 {[%emt 0:00:53]} 29. Re3 {[%emt 0:02:30]} Ra8 {[%emt 0:02:50]} 30. Ra5 {[%emt 0:05:34]} Rb6 {[%emt 0:00:37]} 31. Ke1 {[%emt 0:03:29]} Rb5 {[%emt 0:02:01]} 32. Ra4 {[%emt 0:03:26]} a5 {[%emt 0:06:34]} 33. Kd2 {[%emt 0:07:27]} Rbb8 {[%emt 0:01:41]} 34. Rxa5 {[%emt 0:02:59]} Rxa5 {[%emt 0:00:31]} 35. bxa5 {[%emt 0:00:06]} Ra8 {[%emt 0:00:03]} 36. Rb3 {[%emt 0:08:06]} Rxa5 {[%emt 0:00:17]} 37. Bf1 {[%emt 0:01:54]} Ra4 {[%emt 0:00:31]} 38. Ke3 {[%emt 0:00:27]} g5 {[%emt 0:00:31]} 39. Bd3 {[%emt 0:03:08]} h6 {[%emt 0:00:17]} 40. Rc3 {[%emt 0:01:35]} Bg4 {[%emt 0:01:33]} 41. Bc2 {[%emt 0:32:12]} Ra7 {[%emt 0:30:07]} 42. Kd2 {[%emt 0:00:49]} Bc8 {[%emt 0:00:14]} 43. a4 {[%emt 0:00:45]} Ba6 {[%emt 0:01:12]} 44. h4 {[%emt 0:00:44]} Bc4 {[%emt 0:00:34]} 45. hxg5 {[%emt 0:00:28]} hxg5 {[%emt 0:00:05]} 46. Rf3 {[%emt 0:00:11]} Ke6 {[%emt 0:02:35]} 47. Ra3 {[%emt 0:00:52]} Kd6 {[%emt 0:00:32]} 48. Bd3 {[%emt 0:01:04]} Bxd3 {[%emt 0:17:10]} 49. Kxd3 {[%emt 0:00:10]} Ra5 {[%emt 0:00:01]} 50. g4 {[%emt 0:01:20]} c5 {[%emt 0:02:19]} 51. dxc5+ {[%emt 0:00:16]} Kxc5 {[%emt 0:00:04]} 52. Ra1 {[%emt 0:00:10]} f6 {[%emt 0:04:05]} 53. f3 {[%emt 0:00:41]} Kc6 {[%emt 0:00:55]} 54. Kd4 {[%emt 0:00:28]} Kd6 {[%emt 0:00:10]} 55. Ra2 {[%emt 0:01:12]} Kc6 {[%emt 0:00:13]} 56. Kd3 {[%emt 0:00:33]} Kd6 {[%emt 0:00:33]} 57. Kc3 {[%emt 0:01:46]} Kc5 {[%emt 0:00:16]} 58. Ra1 {[%emt 0:00:20]} d4+ {[%emt 0:03:15]} 59. Kb3 {[%emt 0:01:04]} Kd5 {[%emt 0:01:03]} 60. Kb4 {[%emt 0:00:15]} Ra8 {[%emt 0:00:05]} 61. a5 {[%emt 0:03:56]} Rb8+ {[%emt 0:00:14]} 62. Ka4 {[%emt 0:00:06]} d3 {[%emt 0:00:21]} 63. a6 {[%emt 0:00:34]} Kd4 {[%emt 0:01:00]} 64. a7 {[%emt 0:00:35]} Ra8 {[%emt 0:00:36]} 65. Kb3 {[%emt 0:01:06]} d2 {[%emt 0:00:38]} 66. Kc2 {[%emt 0:00:27]} Ke3 {[%emt 0:00:11]} 67. Kd1 {[%emt 0:00:36]} Kxf3 {[%emt 0:03:17]} 68. Ra4 {[%emt 0:00:12]} f5 {[%emt 0:02:07]} 69. gxf5 {[%emt 0:00:14]} g4 {[%emt 0:00:04]} 70. Kxd2 {[%emt 0:00:34]} g3 {[%emt 0:00:08]} 71. f6 {[%emt 0:01:04]} g2 {[%emt 0:00:05]} 72. Ra1 {[%emt 0:03:11]} Rxa7 {[%emt 0:01:26]} 73. Rxa7 {[%emt 0:00:06]} g1=Q {[%emt 0:00:03]} 74. f7 {[%emt 0:00:13]} Qd4+ {[%emt 0:01:43]} 75. Ke1 {[%emt 0:00:42]} Qb4+ {[%emt 0:02:05]} 76. Kd1 {[%emt 0:00:19]} Ke3 {[%emt 0:00:25]} 77. Kc2 {[%emt 0:00:20]} Qc5+ {[%emt 0:01:03]} 78. Kb1 {[%emt 0:00:43]} Kd3 {[%emt 0:00:57]} 79. Rd7+ {[%emt 0:00:16]} Kc3 {[%emt 0:00:33]} 80. Kc1 {[%emt 0:00:48]} Qg1+ {[%emt 0:00:31]} 0-1